Cogmind - Beta 12 @@@ ROGUE MODE // 2023.09.16 @ 18:06:59 Player: DuckBoy Result: Destroyed by as-41251 with Assembled Rifle Performance ------------- Evolutions (0) 0 Regions Visited (2) 400 Robots Destroyed (8) 40 Value Destroyed (164) 164 Prototype IDs (1) 20 Alien Tech Used (0) 0 Bonus (0) 0 TOTAL SCORE: 624 Bonus ------- None Cogmind --------- Core Integrity 0/250 Matter 300/300 Energy 100/100 System Corruption 4% Temperature Cool (0) Movement Core (100) Ox1 Location -10/Mines Parts ------- > --- POWER (1) -------- (None) > --- PROPULSION (2) --- (None) > --- UTILITY (2) ------ Small Storage Unit > --- WEAPON (2) ------- (None) > --- INVENTORY (8) ---- Light Ion Engine Light Ion Engine Light Ion Engine Heat Sink Medium Storage Unit Tractor Beam Sensor Drone Bay (20/20) Peak State ------------ > --- POWER ------------ (None) > --- PROPULSION ------- Aluminum Leg Aluminum Leg > --- UTILITY ---------- Small Storage Unit Sensor Drone Bay > --- WEAPON ----------- (None) > --- INVENTORY -------- Light Ion Engine Light Ion Engine Light Ion Engine Heat Sink Structural Scanner Tractor Beam [Rating: 11] Favorites ----------- Power Light Ion Engine Engine Light Ion Engine Power Core Light Nuclear Core Propulsion Aluminum Leg Leg Aluminum Leg Wheel Wheel Utility Small Storage Unit Device Structural Scanner Storage Small Storage Unit Weapon Assault Rifle Energy Gun Small Laser Ballistic Gun Assault Rifle Build | -11 -10 -10 ------- Run | Jun Mat Min Slots Evolved . | . . . Power . | . . . Propulsion . | . . . Utility . | . . . Weapon . | . . . Parts Attached 14 | 3 5 6 Power 2 | . 2 . Engine 1 | . 1 . Core 1 | . 1 . Reactor . | . . . Propulsion 5 | 2 . 3 Treads . | . . . Leg 3 | . . 3 Wheel 2 | 2 . . Hover . | . . . Flight . | . . . Utility 4 | 1 1 2 Device 3 | . 1 2 Storage 1 | 1 . . Processor . | . . . Hackware . | . . . Protection . | . . . Artifact . | . . . Weapon 3 | . 2 1 Energy Gun 1 | . 1 . Energy Cannon . | . . . Ballistic Gun 2 | . 1 1 Ballistic Cannon . | . . . Launcher . | . . . Special Weapon . | . . . Impact Weapon . | . . . Slashing Weapon . | . . . Piercing Weapon . | . . . Special Melee Weapon . | . . . Unidentified Prototypes 1 | . . 1 Parts Lost 10 | . 2 8 Power 2 | . 1 1 Propulsion 4 | . 1 3 Utility 1 | . . 1 Weapon 3 | . . 3 Highest Loss Streak 4 | . 2 4 To Critical Strikes . | . . . Average Slot Usage (%) 55 | . 76 46 Engine 2 | . 9 . Core 1 | . 2 . Leg 9 | . . 13 Wheel 8 | . 24 2 Device 10 | . . 14 Storage 14 | . 14 14 Energy Gun 3 | . 12 . Ballistic Gun 4 | . 12 1 Naked Turns . | . . . Heaviest Build 19 | 5 14 19 Greatest Support 26 | 26 26 20 Greatest Overweight (x) 1 | . 1 1 Average Overweight (x) . | . . . Largest Inventory Capacity 8 | 8 8 8 Average Capacity 7 | 6 8 8 Most Carried 8 | 5 5 8 Average Carried 5 | 3 4 6 Final Capacity 8 | 8 8 8 Final Carried 7 | 5 5 7 Class Distribution -------------------- 100% | Mutant Dominant Class ---------------- Mutant | -10/Materials Mutant | -10/Mines Resources | -11 -10 -10 ----------- Run | Jun Mat Min Matter Collected 355 | 230 66 59 Remotely . | . . . Salvage Created 207 | . 163 44 Parts 11 | . 10 1 Haulers Intercepted . | . . . Recyclers Shooed . | . . . Parts Field Recycled . | . . . Retrieved Matter . | . . . Parts Self-Destructed . | . . . Prevented . | . . . Kills | -11 -10 -10 ------- Run | Jun Mat Min Combat Hostiles Destroyed 6 | . 5 1 Guns 5 | . 5 . AOE 1 | . . 1 Classes Destroyed 4 | . 4 . Worker 1 | . 1 . Builder 1 | . 1 . Swarmer 3 | . 3 . Grunt 3 | . 2 1 Best Kill Streak 4 | . 4 1 Combat Bots Only 3 | . 3 1 Max Kills in Single Turn 2 | . 2 1 Gunslinging 1 | . 1 . Exploded 1 | . . 1 Melee . | . . . Uniques/NPCs Destroyed . | . . . Combat | -11 -10 -10 -------- Run | Jun Mat Min Damage Taken 988 | . 251 737 Core 262 | . 32 230 Absorbed by Shields . | . . . Core Remaining (%) 100 | 100 . . Volleys Fired 31 | . 12 19 Largest 2 | . 2 2 Hottest 60 | . 60 60 Shots Fired 49 | . 24 25 Gun 49 | . 24 25 Cannon . | . . . Launcher . | . . . Special . | . . . Kinetic 33 | . 12 21 Thermal 16 | . 12 4 Explosive . | . . . Electromagnetic . | . . . Robot Hit Streak 6 | . 5 6 Robot Miss Streak 3 | . 3 2 Penetration Max . | . . . Secondary Targets 2 | . 2 . Max Gunslinging Chain 1 | . 1 . Shots Hit Robots 30 | . 14 16 Core Hits 16 | . 10 6 Critical Kills . | . . . Critical Parts Destroyed . | . . . Critical Strikes . | . . . Melee Attacks . | . . . Impact . | . . . Slashing . | . . . Piercing . | . . . Sneak Attacks . | . . . Combat Hostiles . | . . . Follow-up Attacks . | . . . Damage Inflicted 338 | . 158 180 Guns 313 | . 158 155 Cannons . | . . . Explosions . | . . . Melee . | . . . Ramming 25 | . . 25 Kinetic 204 | . 72 132 Thermal 109 | . 86 23 Explosive . | . . . Electromagnetic . | . . . Impact . | . . . Slashing . | . . . Piercing . | . . . Highest Corruption 4 | . . 4 Average Corruption 4 | . . 4 Corruption Purged . | . . . Corruption Blocked . | . . . Overload Shots . | . . . Overflow Damage . | . . . Projectiles . | . . . Explosions . | . . . Melee . | . . . Knockbacks . | . . . Impact . | . . . Kinetic . | . . . Secondary . | . . . Self-Inflicted Damage 5 | . . 5 Shots . | . . . Rammed 3 | . . 3 Targets Rammed 9 | . . 9 Kicked 6 | . . 6 Crushed . | . . . Highest Temperature 76 | . 64 76 Average Temperature 37 | . 26 44 Received Heat Transfer 387 | . 129 258 Siege Activations . | . . . Robots Corrupted . | . . . Combat Hostiles . | . . . Parts Fried . | . . . Impact Corruptions . | . . . Robots Melted . | . . . Combat Hostiles . | . . . Parts Melted . | . . . Heat Transferred 250 | . 200 50 Parts Sabotaged . | . . . Parts Stolen . | . . . Parts Stripped . | . . . Power Chain Reactions . | . . . Missiles Intercepted . | . . . Alert | -11 -10 -10 ------- Run | Jun Mat Min Peak Influence 132 | . 132 81 Initial 51 | . . 51 Average 46 | . 76 40 Maximum Alert Level . | . . . Low Security (%) 100 | 100 100 100 Level 1 . | . . . Level 2 . | . . . Level 3 . | . . . Level 4 . | . . . Level 5 . | . . . High Security . | . . . Max Security . | . . . Squads Dispatched . | . . . Investigation . | . . . Extermination . | . . . Reinforcement . | . . . Assault . | . . . Garrison . | . . . Intercept . | . . . Searches Triggered . | . . . Construction Impeded . | . . . Haulers Reinforced . | . . . Active Scanning Responses . | . . . Cargo Convoy Interrupts . | . . . Stealth | -11 -10 -10 --------- Run | Jun Mat Min Distress Signals . | . . . Communications Jammed . | . . . Distress Signals . | . . . Times Spotted 17 | . 5 12 Peak Tracking Total 5 | . 3 5 Tactical Retreats 3 | . . 3 Traps | -11 -10 -10 ------- Run | Jun Mat Min Traps Triggered 1 | . 1 . Indirectly . | . . . Trap Hack Attempts . | . . . Triggered . | . . . Disarmed . | . . . Reprogrammed . | . . . Reused . | . . . Traps Extracted . | . . . Installed . | . . . Triggered 2 | . . 2 Machines | -11 -10 -10 ---------- Run | Jun Mat Min Machines Disabled . | . . . Max in Single Turn . | . . . Machines Repaired . | . . . Machines Sabotaged . | . . . Overloaded Fab Kills . | . . . Hacking | -11 -10 -10 --------- Run | Jun Mat Min Machines Accessed 2 | . 1 1 Terminals 1 | . 1 . Fabricators . | . . . Repair Stations . | . . . Recycling Units . | . . . Scanalyzers . | . . . Garrison Access . | . . . Total Hacks 3 | . 2 1 Successful 2 | . 1 1 Failed 1 | . 1 . Catastrophic . | . . . Database Lockouts . | . . . Manual 2 | . 2 . Terminals 2 | . 2 . Fabricators . | . . . Repair Stations . | . . . Recycling Units . | . . . Scanalyzers . | . . . Garrison Access . | . . . Terminal Hacks 2 | . 1 1 Robot Schematic 1 | . 1 . Open Door 1 | . . 1 Fabricator Hacks . | . . . Repair Station Hacks . | . . . Recycling Unit Hacks . | . . . Scanalyzer . | . . . Garrison Access Hacks . | . . . Unauthorized Hacks . | . . . Terminals . | . . . Fabricators . | . . . Repair Stations . | . . . Recycling Units . | . . . Scanalyzers . | . . . Garrison Access . | . . . Data Cores Recovered . | . . . Used . | . . . Hacking Detections 1 | . 1 . Full Trace Events . | . . . Feedback Events . | . . . Feedback Blocked . | . . . Robot Schematics Acquired 1 | . 1 . Robots Built . | . . . Authchips . | . . . Time . | . . . Total Robot Build Rating . | . . . Part Schematics Acquired . | . . . Parts Built . | . . . Authchips . | . . . Time . | . . . Total Part Build Rating . | . . . Parts Repaired . | . . . Time . | . . . Parts Recycled . | . . . Recycled Matter . | . . . Retrieved Matter . | . . . Retrieved Components . | . . . Parts Scanalyzed . | . . . Part Schematics Acquired . | . . . Parts Damaged . | . . . Bothacking | -11 -10 -10 ------------ Run | Jun Mat Min Used RIF Installer . | . . . Robots Hacked . | . . . Non-combat . | . . . Combat . | . . . Robot Hacks Applied . | . . . Relay Couplers Released . | . . . Fabnet Peak Effective % . | . . . Robots Rewired . | . . . Allies Hacked . | . . . Hacks Repelled . | . . . Allies | -11 -10 -10 -------- Run | Jun Mat Min Total Allies . | . . . Largest Group . | . . . Highest-Rated Group . | . . . Highest-Rated Ally . | . . . Total Orders 5 | . . 5 EXPLORE 1 | . . 1 RETURN 4 | . . 4 Ally Attacks . | . . . Total Damage . | . . . Kills . | . . . Allies Corrupted . | . . . Allies Melted . | . . . Intel | -11 -10 -10 ------- Run | Jun Mat Min Robot Analysis Total . | . . . Derelict Logs Recovered 1 | . . 1 Drone Launches 4 | . . 4 Drone Recoveries 4 | . . 4 Exploration | -11 -10 -10 ------------- Run | Jun Mat Min Turns Passed 672 | 53 168 451 Spaces Moved 473 | 49 123 301 Core 6 | 1 . 5 Treads . | . . . Legs 295 | . . 295 Wheels 172 | 48 123 1 Hover . | . . . Flight . | . . . Fastest Speed 50 | 50 80 80 Average Speed 111 | 88 90 123 Slowest Speed 190 | 90 95 190 Overloaded Moves . | . . . Propulsion Burnouts . | . . . Robots Hopped . | . . . Cave-ins Triggered . | . . . Exploration Rate (%) 31 | 4 26 64 Regions Visited 2 Branch Regions 1 Pre-discovered Areas . | . . . Known Exits Taken . | . . . Unknown Exits Taken 2 | 1 1 . Scrap Searched . | . . . Spaces Dug . | . . . Terrain Destroyed . | . . . Melee . | . . . Projectile . | . . . AOE . | . . . Terrain Rammed . | . . . Walls Destroyed . | . . . Machines Disabled . | . . . Actions | -11 -10 -10 --------- Run | Jun Mat Min Total 566 | 56 154 356 Wait 28 | . 12 16 Move 471 | 48 122 301 Hop . | . . . Pick Up 12 | 5 3 4 Fast Attach 6 | 3 2 1 Attach 5 | . 3 2 Detach . | . . . Swap 3 | . . 3 Drop 1 | . . 1 Fire 31 | . 12 19 Melee . | . . . Ram 3 | . . 3 Kick 6 | . . 6 Crush . | . . . Escape Stasis . | . . . Rewire . | . . . Trap . | . . . Miscellaneous . | . . . Route ------- -11/Junkyard -10/Materials -10/Mines (discovered 2 exits: [*Mat x2]) History --------- Turn | Location | Event 16 | -11/Junkyard | Discovered new exit (range 16) 54 | -11/Junkyard | Entered Materials 218 | -10/Materials | Discovered new exit (range 5) 222 | -10/Materials | Entered Mines 275 | -10/Mines | Core integrity fell below 50% 295 | -10/Mines | Lost 4 parts (1p3w) 309 | -10/Mines | Build established: Mutant 399 | -10/Mines | Discovered new exit (range 10) 437 | -10/Mines | Discovered new exit (range 11) 457 | -10/Mines | Found the Drone Emporium 463 | -10/Mines | Found Prototype Device 472 | -10/Mines | Identified Sensor Drone Bay 562 | -10/Mines | Assembled infested the area 567 | -10/Mines | Assisted by a Guerilla fighting off Assembled 613 | -10/Mines | Core integrity fell below 20% 673 | -10/Mines | Destroyed by as-41251 with Assembled Rifle Last Messages --------------- 00475_ Sensor Drone released from Sensor Drone Bay. 00478_ Sensor Drone retrieved by Sensor Drone Bay. 00516_ Kicked S-10 Pest. 00517_ Kicked S-10 Pest out of the way. 00517_ S-10 Pest suffers critical hit (Destroy). 00528_ Kicked T-07 Excavator. 00551_ Aluminum Leg destroyed. 00562_ ALERT: Infestation in the mines, dispatching Demolisher response squad. 00567_ A derelict emerges from the shadows: "You need to get out of here! I've been tracking a group of Assembled to figure out where they're coming from, and they're closing on this area, come on!" 00646_ Acquired Med. Storage Unit. 00649_ Extracted 10 matter. 00665_ Aluminum Leg destroyed. 00669_ Slammed into as-41251. 00670_ Structural Scanner destroyed. 00670_ System corrupted by crushing effect (+4). 00670_ Destabilizing: Core damaged (-12). 00671_ Slammed into as-41251. Map ----- +----------------------------------------------------+ | ?????????## ## ###?????????????????????????? | | ?????????######### ##?????????????????????????? | | ?????????#### ##?????????????????????????? | | ?????######## ## # ##?????????????????????????? | | ############# # ######??????????????????????? | | ####### # # #######??????????????????????? | | # ##??????????????????????? | | % % ##################??????? | | ####### ###### ############## ###?????? | | ######### #### ####### ##?????? | | ##???#### ######## #??########### #### ? | | ##?????## #########???########### #####??????????? | | ##?????## ##???????????????????## ##?????????????? | | ##?????## ##???????????????????## ##?????????????? | | ##??##### #####????????????????## ##?????????????? | | ##??##### #####????????????????## ##?????????????? | | ##??## ##?????????#####??## ##?????????????? | | ##??## ##?????????######?## ##?????????????? | | ##??## ##????????### ###?## ##?????????????? | | ##??## ##???????#### ##?## ##?????????????? | | ##??## ####?????### ##### ##?????????????? | | ##??#################### ##### ##?????????????? | | ????########## ######## #### ##?????????????? | | ?????????#### ### ##?????????????? | | ????######## ## ######?????????????? | | ???######## @ ######?????????????? | | ???### a% ##?????????????????? | | ???## ##%## ###?????????????????? | | ???## !! ###%#######?????????????????? | | ???### ### #########???????????????? | | ????## # !! ### #########???????????????? | | ????### ###### !! ## ##???????????????? | | ????########### ## ##???????????????? | | ?????????????########## ##???????????????? | | ?????????????########## """ """ ##???????????????? | | ?????????????????????## """ """ ##???????????????? | | ?????????????????????## """ """ ##???????????????? | | ?????????????????????#############???????????????? | | ?????????????????????############????????????????? | | | | | | | | | | | | | | | | | | | | | | | +----------------------------------------------------+ Best States ------------- Heat Dissipation 25 Energy Generation 14 Energy Capacity 160 Matter Stores 300 Matter Capacity 300 Sight Range 16 Terrain Scan Density 10 Evasion (%) 55 Item Schematics ----------------- None Robot Schematics ------------------ M-13 Machinist | -10/Materials | Hacked Fabricated ------------ Nothing Alien Tech Used ----------------- None Achievements -------------- None Challenges ------------ None Game ------ Seed BurstSurgeBooster Manual? 0 Play Time 00:09:09 Cumulative 311.0 hours Start 2023.09.16 @ 17:59:16 End 2023.09.16 @ 18:06:59 Sessions 1 Manual Loads 0 Difficulty Rogue Special Mode None Game No. 205 Rogue 202 Adventurer 3 Explorer 0 Win Type - Total 5 Types 4/0/1/0/0/0/0/0/0 Lore% 71 Gallery% 76 Achievement% 64 Wizard Run 0 Options --------- ASCII 0 Keyboard 0 Movement Numpad Keybinds 0 Fullscreen 1 Font 18/SmallcapsGlow Map View 76x50 Tactical HUD 1 Map Filters NONE Filters NONE Steam 1 RUN: a6be312c-a74c-4841-b18b-429c80d09b18